bitfinex/quotes_ETHUSD_20250806
["timestamp","ask_amount","ask_price","bid_price","bid_amount"]
[1754441199733,25.72422879,3589.2,3589.0,0.002]
[1754441199734,17.18193781,3589.1,3589.0,1e-08]
[1754441199938,21.5281583,3589.1,3589.0,1e-08]
[1754441202869,25.8221583,3589.1,3589.0,1e-08]
[1754441203070,20.1665583,3589.1,3589.0,1e-08]
[1754441203253,13.0648343,3589.1,3589.0,1e-08]
[1754441203444,13.6148343,3589.1,3589.0,1e-08]
[1754441203764,13.0648343,3589.1,3589.0,1e-08]
[1754441204128,25.2684583,3589.1,3589.0,1e-08]
[1754441204334,25.8184583,3589.1,3589.0,1e-08]
[1754441204733,28.7464583,3589.1,3589.0,1e-08]
[1754441205132,20.9744583,3589.1,3589.0,1e-08]
[1754441205367,0.55,3588.1,3586.8,2.78797247]
[1754441205535,4.295,3588.0,3587.5,2.7874505]
[1754441205743,3.0,3587.9,3586.5,2.78818392]
[1754441205962,3.0,3587.9,3585.5,0.55]
[1754441205963,0.1392,3587.2,3586.8,2.7879925]
[1754441206161,7.4332,3587.2,3586.8,2.78799155]
[1754441206336,7.4332,3587.2,3586.2,0.499]
[1754441206537,7.4332,3587.2,3586.4,2.78823761]
[1754441207156,7.4332,3587.2,3586.2,0.499]
[1754441207157,7.4342,3587.2,3586.2,0.499]
[1754441207563,10.22188956,3587.2,3586.4,2.78826192]
[1754441207872,10.22188956,3587.2,3586.5,2.78819379]
[1754441208060,10.22188956,3587.2,3586.4,2.78829867]
[1754441208235,10.77188956,3587.2,3586.3,2.78836411]
[1754441208437,12.12783343,3587.2,3587.1,1e-08]
[1754441208632,2.78825,3586.5,3586.1,0.04]
[1754441208839,3.55,3586.2,3586.1,0.04]
[1754441209078,2.78784499,3587.0,3586.1,0.04]
[1754441209079,3.0,3586.9,3586.1,0.04]
[1754441209384,4.33785,3586.8,3586.2,2.78844715]
[1754441209551,7.853,3586.7,3586.1,0.04]
[1754441209871,0.55,3586.3,3585.0,1.36699467]
[1754441210073,0.55,3585.9,3585.0,1.36699467]
[1754441210271,0.55,3585.7,3584.1,0.04]
[1754441210464,4.306,3585.6,3585.1,2.82931128]
[1754441211078,4.306,3585.6,3585.1,0.04]
[1754441211276,2.78901129,3585.5,3585.1,0.04]
[1754441211575,7.13495305,3585.4,3585.1,0.04]
[1754441211741,2.78916861,3585.3,3585.1,0.04]
[1754441211945,4.311,3585.2,3585.1,0.04]
[1754441212139,10.13511022,3585.2,3585.1,0.04]
[1754441212378,10.65024467,3585.2,3585.1,0.04]
[1754441212585,7.318,3585.2,3585.1,0.04]
[1754441213982,3.0,3585.2,3585.1,0.04]
[1754441214148,7.32,3585.2,3585.1,0.04]
[1754441214557,0.55,3585.9,3585.1,0.04]
[1754441214861,3.0,3585.6,3585.1,0.04]
[1754441215042,3.0,3585.4,3585.1,0.04]
[1754441215237,7.10822108,3585.3,3585.1,0.04]
[1754441215440,2.78924467,3585.2,3585.1,0.04]
[1754441215670,4.319,3585.3,3585.1,0.04]
[1754441215857,4.319,3585.2,3585.1,0.04]
[1754441216759,4.32,3585.2,3585.1,2.82927375]
[1754441216976,3.0,3585.7,3585.1,2.82927375]
[1754441217277,3.0,3585.5,3585.1,0.04]
[1754441217579,3.0,3585.3,3585.1,0.04]
[1754441217739,4.321,3585.2,3585.1,2.82931263]
[1754441217938,3.81263552,3585.8,3585.1,2.82931263]
[1754441218164,3.0,3585.6,3585.1,2.82931263]
[1754441218352,3.0,3585.4,3585.1,0.04]
[1754441218549,2.92844467,3585.2,3585.1,0.04]
[1754441218810,6.51331022,3585.2,3585.1,0.04]
[1754441219082,7.83634467,3585.2,3585.1,0.04]
[1754441220198,3.1392,3585.2,3585.1,0.04]
[1754441220343,0.1392,3585.2,3585.1,0.04]
[1754441220547,4.4622,3585.2,3585.1,3.11226987]
[1754441220775,4.4622,3585.2,3585.1,2.82932247]
[1754441221064,4.4622,3585.2,3585.1,0.04]
[1754441222501,7.4622,3585.2,3585.1,0.04]
[1754441222654,8.30108,3585.2,3585.1,0.04]
[1754441222849,7.4622,3585.2,3585.1,0.04]
[1754441223383,0.1392,3585.2,3585.1,2.78932247]
[1754441223548,4.4622,3585.2,3585.1,2.78932247]
[1754441224556,0.1392,3585.2,3585.1,2.78932247]
[1754441224787,4.4622,3585.2,3585.1,2.78932247]
[1754441225087,6.12612,3585.2,3584.2,2.7899789]
[1754441225254,6.12612,3585.2,3583.4,2.79064575]
[1754441225457,6.12612,3585.2,3583.3,4.322]
[1754441225794,6.12612,3585.2,3584.1,2.79007119]
[1754441225795,2.78939644,3585.1,3584.1,2.79007119]
[1754441225996,2.78939644,3585.1,3584.2,2.79001763]
[1754441226244,3.0,3585.1,3583.4,0.4362]
[1754441226404,10.845724,3583.4,3580.6,0.01958949]
[1754441226692,2.79158059,3582.2,3580.7,0.14558656]
[1754441226867,2.79158059,3582.2,3580.9,2.79252765]
[1754441226868,7.17458059,3582.2,3580.9,2.79252765]
[1754441227052,7.17458059,3582.2,3580.6,0.01958949]
[1754441227256,0.9266,3582.8,3580.8,2.79266482]
[1754441227464,23.35593906,3583.8,3581.1,23.26036228]
[1754441227465,4.384,3582.7,3581.1,23.26036228]
[1754441227760,4.386,3582.9,3582.0,2.7917311]
[1754441228072,4.386,3583.2,3582.2,0.28317311]
[1754441228283,6.695,3583.7,3583.6,2.79049001]
[1754441228284,4.388,3583.7,3583.6,2.79049001]
[1754441228614,4.388,3584.0,3583.9,2.79025642]
[1754441228788,4.389,3584.3,3583.6,0.279049]
[1754441228967,0.04,3584.9,3584.4,2.7898672]
[1754441229170,5.3156,3584.8,3583.7,0.30696802]
[1754441229384,5.7469,3584.8,3584.3,2.7899445]
[1754441229569,2.78982741,3584.5,3582.4,2.79142474]
[1754441229770,0.55,3584.3,3582.2,7.67417311]
[1754441229978,0.55,3584.1,3583.5,2.79049846]
[1754441230180,1.39277528,3584.2,3583.1,0.002]
[1754441230181,4.392,3584.0,3583.1,2.7928192]
[1754441230393,4.392,3584.0,3583.1,0.002]
[1754441230712,4.392,3584.0,3583.8,2.79026974]
[1754441231308,4.392,3584.0,3583.7,2.79036927]
[1754441231506,4.392,3584.0,3583.2,0.27928841]
[1754441231676,4.392,3584.0,3583.8,2.79026044]
[1754441231877,4.392,3584.0,3583.9,2.79025642]
[1754441232116,4.392,3584.0,3583.7,2.79033657]
[1754441232311,4.392,3584.0,3583.8,2.79028099]
[1754441232512,4.392,3584.0,3583.2,0.27928841]
[1754441232513,4.392,3584.0,3583.9,2.79025642]
[1754441233413,4.392,3584.0,3583.9,3.34832303]
[1754441233934,0.04,3584.9,3584.8,2.7895559]
[1754441234210,4.429,3584.9,3584.8,2.7895559]
[1754441234511,4.429,3584.9,3584.7,2.78961511]
[1754441235013,1.531,3584.8,3584.4,2.78985266]
[1754441235314,1.3918,3584.7,3584.1,2.79008428]
[1754441235513,0.9301,3584.6,3584.1,2.79008428]
[1754441235713,4.8441,3584.5,3583.9,2.79024726]
[1754441236015,4.391,3584.5,3584.0,2.79016162]
[1754441236330,4.391,3584.5,3583.5,0.002]
[1754441236331,3.0,3584.4,3583.8,2.79031722]
[1754441236478,4.3918,3584.4,3583.8,2.79031722]
[1754441236679,0.55,3583.8,3583.5,0.002]
[1754441236902,0.1392,3583.6,3583.5,0.002]
[1754441237430,0.04,3584.9,3583.5,0.002]
[1754441237636,0.1392,3583.8,3583.5,0.002]
[1754441237992,0.1392,3583.8,3583.7,2.79041214]
[1754441238529,0.04,3584.9,3584.7,2.78958088]
[1754441238689,0.04,3584.9,3584.8,2.7895559]
[1754441239097,0.1792,3584.9,3584.8,2.7895559]
[1754441239590,0.1792,3584.9,3584.0,0.1392]
[1754441239591,0.1792,3584.9,3584.7,2.78961107]
[1754441239787,0.1392,3584.8,3584.0,0.1392]
[1754441239988,2.78978937,3584.5,3583.7,2.79034836]
[1754441240189,5.8038,3584.4,3583.8,2.79032335]
[1754441240588,0.1392,3583.9,3583.8,2.79032335]
[1754441240784,0.1392,3583.9,3583.7,2.7903992]
[1754441240995,0.1392,3583.8,3583.7,2.7903992]
[1754441241199,0.1392,3583.8,3583.5,0.002]
[1754441241811,0.1392,3583.6,3583.5,2.79255162]
[1754441242095,4.18229001,3583.6,3583.5,0.002]
[1754441242308,8.37988805,3583.6,3583.5,0.002]
[1754441242508,8.34500693,3583.6,3583.5,0.002]
[1754441243094,2.79065279,3583.4,3582.6,2.79120462]
[1754441243294,2.55451692,3583.6,3582.1,0.04]
[1754441243526,3.0,3583.4,3582.1,0.04]
[1754441243826,1.3918,3583.6,3582.1,0.04]
[1754441244125,1.3918,3583.6,3583.1,2.79083998]
[1754441244126,4.423,3583.3,3583.1,2.79083998]
[1754441244324,0.03487528,3584.2,3582.4,2.79139573]
[1754441244325,0.4617,3584.1,3582.4,0.0619]
[1754441244513,2.79038004,3583.8,3582.4,2.85329345]
[1754441244720,5.79027106,3583.9,3583.1,2.79085119]
[1754441244889,4.422,3583.7,3583.0,2.79094144]
[1754441245092,0.03488112,3583.6,3583.0,2.79094144]
[1754441245327,0.03488112,3583.6,3583.1,2.79087125]
[1754441245624,4.422,3583.7,3583.2,2.79072965]
[1754441246023,5.8138,3583.7,3583.2,2.79072965]
[1754441246345,1.3918,3583.7,3583.2,2.79072965]
[1754441246525,5.8128,3583.7,3583.1,2.79287304]
[1754441246945,1.3918,3583.7,3583.1,0.002]
[1754441247101,4.419,3583.7,3583.1,0.002]
[1754441247301,0.9301,3584.6,3583.9,2.79018492]
[1754441247611,3.0,3584.4,3584.0,2.79011928]
[1754441248044,3.0,3584.4,3583.2,2.79080151]
[1754441248196,4.42,3584.4,3584.2,2.78999669]
[1754441248396,0.001,3584.7,3584.5,2.78976576]
[1754441248626,0.001,3584.7,3584.4,2.78981235]
[1754441248627,4.421,3584.7,3584.4,2.78981235]
[1754441248927,3.0,3584.6,3583.6,2.85236038]
[1754441249229,3.0,3584.6,3584.2,2.78996802]
[1754441249728,3.0,3584.6,3584.0,2.79015515]
[1754441250031,3.0,3584.6,3584.2,2.78996315]
[1754441250532,1.3918,3584.5,3583.9,2.79019543]
[1754441250832,1.3918,3584.5,3584.1,2.7900449]
[1754441250998,0.9301,3584.5,3584.1,2.7900449]
[1754441251323,4.417,3584.5,3584.2,2.78996188]
[1754441251518,4.417,3584.5,3583.3,0.0619]
[1754441251717,5.3471,3584.5,3583.3,3.28302309]
[1754441251919,2.78996634,3584.3,3583.6,2.7904232]
[1754441252245,0.1392,3583.5,3583.4,2.79064575]
[1754441252493,0.001,3584.6,3583.5,0.1392]
[1754441252617,0.001,3584.6,3584.5,2.78978937]
[1754441254702,0.001,3584.6,3584.4,2.7898019]
[1754441254905,5.8098,3584.5,3583.1,0.002]
[1754441255143,5.27646714,3584.4,3583.1,0.002]
[1754441255434,5.06633869,3584.4,3583.1,0.002]
[1754441255638,8.14205488,3584.3,3583.1,0.002]
[1754441255851,8.14205488,3584.3,3583.5,2.7905063]
[1754441256006,1.34636714,3584.4,3583.1,0.002]
[1754441256007,5.3511,3584.2,3583.1,0.002]
[1754441256322,4.42,3584.1,3583.6,2.79047233]
[1754441256503,4.42,3584.1,3583.1,0.28129847]
[1754441256826,4.42,3584.1,3583.5,2.7905387]
[1754441257430,4.42,3584.1,3583.1,0.28129847]
[1754441257628,0.9301,3584.2,3583.8,2.79033223]
[1754441257832,5.79072843,3584.6,3583.3,2.85262363]
[1754441257833,0.9311,3584.6,3583.3,2.85262363]
[1754441258144,0.9311,3584.6,3583.5,2.79056788]
[1754441258334,0.001,3584.6,3583.5,2.79056788]
[1754441258497,0.001,3584.6,3584.5,2.78978937]
[1754441258698,0.001,3584.6,3583.5,0.0619]
[1754441258901,0.001,3584.6,3583.6,0.72705458]
[1754441259200,0.001,3584.6,3584.3,2.78988334]
[1754441259405,0.001,3584.6,3583.6,0.72705458]
[1754441259629,0.001,3584.6,3584.1,2.79002849]
[1754441259933,1.3918,3584.5,3584.1,2.79002716]
[1754441260139,1.3918,3584.4,3584.1,2.79002716]
[1754441260321,1.3918,3584.3,3584.1,2.79002716]
[1754441260524,1.3918,3584.3,3584.2,2.79002287]
[1754441261039,1.3918,3584.3,3584.1,2.79007375]
[1754441261224,0.4617,3584.3,3583.9,2.79023357]
[1754441261417,0.9301,3584.2,3583.5,2.79056788]
[1754441261618,0.9301,3584.2,3584.1,2.79010072]
[1754441262815,0.9301,3584.2,3584.0,2.7901681]
[1754441263025,2.79072171,3584.6,3584.0,2.7901681]
[1754441263346,2.78986803,3584.4,3583.8,2.79028308]
[1754441263544,1.4243,3584.3,3583.8,2.79028308]
[1754441263781,1.4243,3584.3,3584.0,2.79015941]
[1754441264111,1.4243,3584.2,3584.0,2.79015941]
[1754441264644,1.4243,3584.2,3583.9,2.79022606]
[1754441264845,1.4243,3584.2,3583.9,2.79022731]
[1754441265041,0.1392,3584.0,3583.9,2.79022731]
[1754441266739,4.408,3584.4,3584.2,2.78994611]
[1754441266916,0.1392,3584.3,3583.9,0.5580632]
[1754441267120,5.3782,3584.5,3584.2,2.79002287]
[1754441267335,0.1392,3584.2,3583.9,0.5580632]
[1754441267542,4.406,3584.6,3584.4,2.7898468]
[1754441267741,4.406,3584.6,3584.3,2.78992257]
[1754441268262,0.1392,3584.4,3584.3,2.78992257]
[1754441268557,0.1392,3584.4,3584.3,3.38140895]
[1754441268778,0.1392,3584.4,3583.6,0.002]
[1754441268779,1.5635,3584.4,3583.6,0.002]
[1754441268969,0.001,3584.6,3584.5,2.78978937]
[1754441269455,0.1402,3584.6,3584.5,2.78978937]
[1754441269853,0.001,3584.6,3584.5,2.78978937]
[1754441270061,0.001,3584.6,3584.5,3.36168281]
[1754441270859,0.001,3584.6,3584.5,2.78978937]
[1754441271064,0.001,3584.6,3584.2,0.1392]
[1754441271223,0.001,3584.6,3583.7,2.79041214]
[1754441271224,1.4243,3584.5,3583.7,2.79041214]
[1754441271450,0.1392,3584.4,3584.3,2.78994503]
[1754441271687,1.5635,3584.4,3584.1,2.79006984]
[1754441271846,1.4243,3584.3,3584.1,2.79006984]
[1754441272047,1.4243,3584.2,3584.1,2.79006984]
[1754441272267,1.4243,3584.2,3584.0,2.79016998]
[1754441272483,1.4243,3584.2,3583.6,4.406]
[1754441272657,0.1392,3584.0,3583.6,4.406]
[1754441273078,1.1114,3584.0,3583.6,4.406]
[1754441273282,0.4521,3583.9,3583.6,0.002]
[1754441273484,0.4521,3583.9,3583.8,2.7902749]
[1754441273485,1.4243,3583.9,3583.8,2.7902749]
[1754441273786,1.5635,3583.9,3583.8,2.7902749]
[1754441274453,0.1392,3583.9,3583.8,2.7902749]
[1754441274873,1.4243,3583.9,3583.6,0.002]
[1754441275200,0.4521,3583.8,3583.6,0.002]
[1754441275354,1.4243,3583.8,3583.6,0.002]
[1754441275552,0.9722,3583.7,3583.6,2.79249001]
[1754441276296,0.9722,3583.7,3583.6,0.002]
[1754441276669,0.9722,3583.7,3583.6,2.79249001]
[1754441276996,0.9722,3583.7,3583.6,0.002]
[1754441277382,1.4243,3583.7,3583.6,0.002]
[1754441279432,4.21471214,3583.7,3583.6,0.002]
[1754441279642,2.79070698,3583.4,3582.5,4.397]
[1754441279856,5.8213,3583.3,3582.5,0.4397]
[1754441280130,5.8213,3583.3,3582.9,2.79100519]
[1754441280291,1.4243,3583.2,3582.9,2.79100519]
[1754441280490,1.4243,3583.1,3583.0,2.79090907]
[1754441280695,0.9722,3583.1,3583.0,2.79090907]
[1754441280948,0.9722,3583.8,3583.0,0.55839556]
[1754441281156,4.395,3583.4,3583.3,2.79072363]
[1754441281350,4.395,3583.4,3583.2,2.79077807]
[1754441281552,5.3672,3583.4,3583.3,2.79072363]
[1754441281896,1.4243,3583.7,3583.3,2.79072363]
[1754441282125,5.8183,3583.6,3583.3,2.79072363]
[1754441282529,5.8183,3583.6,3582.8,0.002]
[1754441282530,1.4243,3583.5,3583.4,2.7906371]
[1754441282833,0.4521,3584.0,3582.8,0.002]
[1754441283034,5.3662,3583.9,3583.6,2.79044399]
[1754441283239,1.4243,3583.8,3583.6,2.79046253]
[1754441283704,4.394,3583.9,3583.6,2.79046253]
[1754441283902,1.4243,3583.9,3583.8,2.79033364]
[1754441284098,5.8173,3583.9,3583.4,2.79061775]
[1754441284436,0.9722,3583.8,3583.1,2.79080399]
[1754441284635,0.9722,3583.8,3583.7,2.79041214]
[1754441284837,0.001,3584.7,3583.2,0.2790804]
[1754441285000,3.0,3584.4,3583.8,2.79026118]
[1754441285201,1.4243,3584.3,3583.9,2.7902555]
[1754441285725,0.1392,3584.0,3583.9,2.7902555]
[1754441286856,0.1392,3584.0,3583.8,2.79030357]
[1754441287044,4.391,3584.2,3583.9,2.79025642]
[1754441287456,0.1392,3584.0,3583.9,2.79025642]
[1754441287657,0.1392,3584.0,3583.1,0.1988]
[1754441287658,5.8143,3584.1,3582.8,0.002]
[1754441287832,3.4521,3584.0,3583.4,2.79063706]
[1754441288033,1.4243,3583.9,3582.8,0.002]
[1754441288350,1.4243,3583.9,3583.5,2.79049229]
[1754441288551,1.4243,3583.8,3582.9,2.79103519]
[1754441288855,1.4243,3583.8,3583.4,2.79059025]
[1754441288856,5.8123,3583.8,3583.4,2.79059025]
[1754441289063,4.388,3583.8,3583.4,2.79059025]
[1754441289224,0.9722,3583.7,3582.9,0.27930352]
[1754441289430,4.389,3583.9,3583.6,2.79042522]
[1754441289645,0.9722,3583.8,3583.6,2.79042522]
[1754441289830,1.4243,3583.8,3583.6,2.79042522]
[1754441290032,1.4243,3583.7,3583.6,2.79042522]
[1754441293530,5.3597,3584.0,3583.8,2.79026699]
[1754441293733,5.3597,3584.0,3583.9,2.79025642]
[1754441293734,4.8415,3584.0,3583.9,2.79025642]
[1754441293949,0.4515,3584.0,3583.9,2.79025642]
[1754441294157,4.8345,3584.0,3583.9,2.79025642]
[1754441294349,5.8042,3584.0,3583.7,2.79038722]
[1754441294580,1.4212,3583.9,3583.7,2.79038722]
[1754441294755,1.4212,3583.9,3583.6,2.79048106]
[1754441295085,1.4212,3583.8,3583.6,2.79048106]
[1754441295384,1.4212,3583.8,3583.7,2.79041214]
[1754441295586,5.3527,3584.0,3583.7,2.79033808]
[1754441295793,5.3527,3584.0,3583.9,0.002]
[1754441295953,4.8345,3584.0,3583.9,0.002]
[1754441296488,5.8042,3584.0,3583.9,0.002]
[1754441296892,0.001,3584.6,3583.9,0.002]
[1754441297055,0.001,3584.6,3584.5,2.78978937]
[1754441297257,0.001,3584.6,3584.5,3.06876831]
[1754441297755,0.001,3584.6,3584.5,6.20796831]
[1754441298279,1.4222,3584.6,3584.0,2.79011448]
[1754441298470,1.4222,3584.6,3583.9,2.79221471]
[1754441298471,1.4212,3584.5,3583.9,0.002]
[1754441298684,5.8372,3584.5,3584.1,2.7900758]
[1754441298885,4.55832,3584.5,3584.1,2.7900758]
[1754441299055,5.00982,3584.5,3584.2,2.79000696]
[1754441299256,1.4212,3584.4,3583.9,0.002]
[1754441299584,2.019352,3584.4,3583.9,0.002]
[1754441299786,1.4212,3584.3,3583.9,2.79224412]
[1754441300078,0.9697,3584.3,3583.9,0.002]
[1754441300283,0.9697,3584.2,3584.1,2.7900491]
[1754441300481,0.9697,3584.2,3583.9,2.7922522]
[1754441300695,5.3857,3584.5,3583.9,0.002]
[1754441300869,5.3857,3584.5,3584.1,2.79006117]
[1754441301190,1.84576065,3584.4,3584.0,2.79016648]
[1754441301394,1.4212,3584.3,3583.9,2.79223859]
[1754441301567,1.4212,3584.2,3583.9,2.79223859]
[1754441301781,1.4212,3584.1,3583.9,2.79223859]
[1754441301972,0.4515,3584.1,3583.9,2.79225185]
[1754441302201,0.9697,3584.0,3583.9,2.79225185]
[1754441302964,1.4212,3584.0,3583.9,0.002]
[1754441303167,1.4212,3584.0,3583.9,2.79225642]
[1754441304018,1.4212,3584.0,3583.9,0.002]
[1754441305514,2.28282278,3584.0,3583.9,0.002]
[1754441307121,0.86162278,3584.0,3583.9,0.002]
[1754441307418,5.8232,3584.0,3583.9,0.002]
[1754441308528,8.75257857,3584.0,3583.9,0.002]
[1754441311736,5.9624,3584.0,3583.9,0.002]
[1754441311940,4.5342,3584.0,3583.9,0.002]
[1754441312111,7.87476857,3584.0,3583.9,0.002]
[1754441312441,9.29596857,3584.0,3583.9,0.002]
[1754441313231,3.34072363,3583.3,3583.2,0.002]
[1754441313443,2.79125431,3582.7,3582.1,0.04]
[1754441313635,4.4,3582.6,3582.1,0.04]
[1754441313801,7.19127104,3582.6,3582.1,0.04]
[1754441314008,4.4,3582.6,3582.1,0.04]
[1754441314406,5.3697,3582.6,3582.1,0.04]
[1754441314716,5.3697,3582.6,3582.1,2.83165431]
[1754441314919,5.3697,3582.6,3582.2,2.79156803]
[1754441315333,4.4,3582.6,3582.1,2.83164168]
[1754441315537,0.9697,3582.5,3582.1,2.83164168]
[1754441315912,0.9697,3582.5,3582.2,2.79153952]
[1754441316206,4.4,3582.6,3582.1,0.04]
[1754441316406,1.4212,3582.4,3582.1,0.04]
[1754441316724,4.412,3582.3,3582.1,0.04]
[1754441316901,5.8332,3582.3,3582.1,0.04]
[1754441317103,0.9697,3582.2,3582.1,0.04]
[1754441317350,0.9697,3582.2,3582.1,2.83165852]
[1754441318226,4.8635,3582.3,3582.1,2.83165852]
[1754441318453,4.412,3582.2,3582.1,2.83165852]
[1754441318741,4.412,3582.2,3582.1,0.04]
[1754441318939,5.3817,3582.2,3582.1,0.04]
[1754441319108,5.8332,3582.2,3582.1,0.04]
[1754441319557,9.20810059,3582.2,3582.1,0.04]
[1754441319851,2.79166359,3582.1,3581.4,3.0]
[1754441320010,5.8282,3582.0,3581.4,2.79219419]
[1754441320211,8.61997742,3582.0,3581.3,2.79225505]
[1754441320512,13.18725374,3581.9,3581.1,0.04]
[1754441320711,2.79202426,3581.7,3581.1,0.04]
[1754441320932,1.45609865,3581.8,3581.1,0.04]
[1754441320933,2.79206677,3581.6,3581.1,0.04]
[1754441321242,4.416,3581.5,3581.1,0.04]
[1754441321439,4.417,3581.4,3581.1,0.04]
[1754441321603,2.7923601,3581.2,3581.1,0.04]
[1754441321803,2.7923601,3581.2,3580.1,0.04]
[1754441322040,5.8402,3581.1,3580.5,2.79288936]
[1754441322357,2.79308197,3580.3,3580.1,0.04]
[1754441322539,2.79294377,3580.5,3580.1,0.04]
[1754441322739,2.79314004,3580.2,3580.1,0.04]
[1754441322939,2.79329608,3580.0,3579.1,0.04]
[1754441323144,7.35729608,3580.0,3579.1,0.04]
[1754441323313,7.90729608,3580.0,3579.1,0.04]
[1754441323520,0.55,3579.8,3579.1,0.04]
[1754441323836,0.14,3579.2,3579.1,0.04]
[1754441324077,4.564,3579.2,3579.1,0.04]
[1754441324239,6.0113,3579.2,3579.1,0.04]
[1754441324711,6.0113,3579.2,3579.1,2.83399849]
[1754441324914,5.5596,3579.2,3579.1,2.83399849]
[1754441325138,1.1356,3579.2,3579.1,0.04]
[1754441325337,6.0133,3579.2,3579.1,0.04]
[1754441325543,0.9956,3579.2,3579.1,2.83399849]
[1754441325754,5.8763,3579.2,3579.1,0.04]
[1754441326114,5.8843,3579.2,3579.1,0.04]
[1754441326421,0.9956,3579.6,3577.8,2.79501369]
[1754441326608,0.9956,3579.6,3578.8,2.79422897]
[1754441326609,4.8877,3579.5,3578.8,2.79422897]
[1754441326812,3.0,3579.3,3577.4,0.55]
[1754441327013,1.4473,3579.2,3577.5,2.79524807]
[1754441327252,5.8873,3579.1,3577.6,3.40481632]
[1754441327425,5.8873,3579.1,3578.9,2.79409195]
[1754441327426,4.439,3579.0,3578.9,2.79409195]
[1754441327645,0.9956,3579.1,3579.0,2.79407655]
[1754441327830,1.4473,3579.5,3578.2,3.0]
[1754441328033,1.4473,3579.5,3579.4,2.79376431]
[1754441328227,5.8863,3579.5,3579.4,2.79376431]
[1754441328554,0.9956,3579.8,3578.4,3.0]
[1754441328756,2.79277841,3580.7,3579.9,2.7933407]
[1754441328757,0.9956,3580.1,3579.9,2.7933407]
[1754441328929,0.9956,3580.0,3579.9,2.7933407]
[1754441329137,5.4346,3580.0,3579.9,2.7533407]
[1754441329475,0.9956,3580.0,3579.9,2.7533407]
[1754441329759,4.438,3580.0,3578.9,2.79412439]
[1754441330062,0.9956,3580.3,3580.2,2.79314004]
[1754441330235,0.4517,3580.5,3580.3,2.79302111]
[1754441330437,5.8843,3580.4,3579.0,3.27941244]
[1754441330757,5.4326,3580.3,3580.0,2.79323215]
[1754441330950,5.4326,3580.3,3579.8,2.79342588]
[1754441331144,4.437,3580.3,3579.6,2.79353084]
[1754441331451,1.4473,3580.2,3579.6,2.79356503]
[1754441331653,1.4473,3580.1,3579.7,2.79352308]
[1754441331829,1.4473,3580.1,3578.4,0.0512]
[1754441331830,0.9956,3580.0,3578.8,0.0512]
[1754441332036,4.435,3579.9,3579.8,2.79337556]
[1754441332462,4.435,3579.9,3578.4,7.435]
[1754441332463,4.438,3580.1,3579.4,0.0512]
[1754441332756,4.438,3580.1,3578.6,2.79438886]
[1754441332962,0.9956,3580.0,3578.6,3.0]
[1754441333263,0.9956,3580.5,3579.1,2.79398119]
[1754441333426,4.8907,3580.4,3579.9,2.79331646]
[1754441333623,1.4473,3580.3,3579.9,2.79331646]
[1754441333851,5.8853,3580.2,3578.8,3.0]
[1754441334159,4.24052628,3580.1,3579.4,2.79371107]
[1754441334349,4.44,3580.0,3579.4,2.79371107]
[1754441334546,4.24067709,3579.9,3578.6,3.0]
[1754441334863,2.79346411,3579.8,3579.1,2.79395491]
[1754441335272,1.4473,3579.7,3579.1,2.79395491]
[1754441335441,0.9956,3579.6,3578.7,3.09428213]
[1754441335643,0.14,3579.0,3578.8,2.79420333]
[1754441335959,0.14,3578.9,3578.8,2.79420333]
[1754441336369,0.14,3578.9,3578.5,2.79445195]
[1754441336370,1.4534,3578.9,3578.5,2.79445195]
[1754441336667,0.9956,3578.8,3578.3,2.79455894]
[1754441336840,1.4473,3578.7,3578.3,2.79455894]
[1754441337026,4.442,3578.6,3578.5,2.79439118]
[1754441337225,0.9956,3579.1,3578.6,2.794373]
[1754441337423,5.8883,3579.0,3578.2,2.79470124]
[1754441338063,5.8883,3579.0,3578.5,2.79446189]
[1754441338265,1.4473,3578.9,3578.4,2.79447741]
[1754441338568,1.4473,3578.9,3577.7,5.79509181]
[1754441338569,1.4473,3578.8,3577.7,5.79509181]
[1754441338727,0.9956,3578.8,3578.5,2.79445436]
[1754441338927,1.01045768,3579.2,3578.6,2.7943689]
[1754441339155,3.0,3580.2,3577.3,5.54654919]
[1754441339156,0.001,3580.8,3578.0,3.0]
[1754441339352,0.9956,3579.6,3577.6,3.0]
[1754441339538,4.93262107,3579.5,3577.7,2.79509181]
[1754441339748,4.83388816,3579.4,3578.4,2.79448322]
[1754441340231,5.8943,3579.3,3578.6,2.79431414]
[1754441340432,4.8987,3579.3,3578.0,2.7948511]
[1754441340729,4.8987,3579.3,3578.5,2.79444132]
[1754441340730,4.24123851,3579.2,3578.5,2.79444132]
[1754441340961,2.79400763,3579.1,3578.4,2.79452952]
[1754441341165,1.4473,3579.1,3578.3,2.7946221]
[1754441341363,1.4473,3579.0,3578.6,2.79438442]
[1754441341668,1.4473,3578.9,3578.6,2.79438442]
[1754441341867,0.9956,3578.9,3578.7,2.79429723]
[1754441342056,4.444,3578.9,3578.8,2.7942327]
[1754441342365,4.444,3578.9,3578.0,2.79485746]
[1754441342568,5.4396,3578.9,3578.7,2.79425836]
[1754441342727,0.9956,3579.3,3578.8,2.7942039]
[1754441342926,0.9956,3579.3,3578.4,2.79454005]
[1754441342927,5.4416,3579.3,3578.2,2.79468134]
[1754441343141,5.4416,3579.3,3578.7,2.79423454]
[1754441343344,5.4416,3579.3,3578.3,0.28426813]
[1754441343345,5.4416,3579.3,3578.9,2.79413981]
[1754441343566,4.446,3579.3,3579.0,2.79402801]
[1754441343733,4.8977,3579.3,3578.8,2.79423073]
[1754441343927,5.8933,3579.3,3578.8,2.79423073]
[1754441344167,2.83337519,3579.9,3578.8,2.79423073]
[1754441344168,1.0356,3579.9,3579.3,2.79381949]